bitfinex-derivatives/quotes_SOLF0:USTF0_20241027
["timestamp","ask_amount","ask_price","bid_price","bid_amount"]
[1730009000476,4.16,172.53,172.52,7.98672605]
[1730009003987,4.16,172.53,172.52,2.9014]
[1730009004375,4.16,172.53,172.52,7.98664024]
[1730009007892,4.16,172.53,172.52,7.98671573]
[1730009015472,4.16,172.53,172.52,7.9872538]
[1730009019278,4.16,172.53,172.52,2.9014]
[1730009019479,4.16,172.53,172.52,7.98774497]
[1730009024380,12.18894792,172.53,172.52,7.98774497]
[1730009024583,12.18894792,172.53,172.44,5.3452]
[1730009024786,12.18894792,172.53,172.51,2.9017]
[1730009024787,4.16,172.53,172.51,2.9017]
[1730009025091,8.02894792,172.52,172.46,8.02894792]
[1730009025295,8.02894792,172.52,172.49,2.9019]
[1730009025588,8.02894792,172.52,172.5,5.08753744]
[1730009025788,8.02894792,172.52,172.51,5.08753744]
[1730009026783,8.02894792,172.52,172.5,2.9018]
[1730009026991,8.02894792,172.52,172.51,7.98921861]
[1730009027184,12.18894792,172.53,172.51,7.98921861]
[1730009027487,12.18894792,172.53,172.51,2.9017]
[1730009028085,12.18894792,172.53,172.47,8.02894792]
[1730009028286,12.18894792,172.53,172.44,1.2252]
[1730009028287,1.2437,172.61,172.5,8.02894792]
[1730009028480,1.2437,172.61,172.51,5.08734333]
[1730009028481,8.02894792,172.55,172.51,5.08734333]
[1730009028687,1.2437,172.61,172.44,1.2252]
[1730009028688,12.08894792,172.54,172.52,5.08734333]
[1730009028881,4.06,172.53,172.52,2.9013]
[1730009029085,4.06,172.53,172.52,7.9884752]
[1730009030579,4.06,172.53,172.52,2.9013]
[1730009030782,4.06,172.53,172.52,7.98847629]
[1730009034687,4.06,172.53,172.52,2.9013]
[1730009034992,4.06,172.53,172.52,7.98827277]
[1730009042801,12.08894792,172.53,172.52,7.98827277]
[1730009044604,12.08894792,172.53,172.52,7.9930409]
[1730009047101,4.06,172.53,172.52,7.9930409]
[1730009047300,12.08894792,172.53,172.52,7.9930409]
[1730009048112,12.08894792,172.53,172.52,2.9013]
[1730009048297,12.08894792,172.53,172.52,7.99418762]
[1730009048907,12.08894792,172.53,172.52,2.9013]
[1730009049110,12.08894792,172.53,172.52,7.99459577]
[1730009051904,12.08894792,172.53,172.52,2.9013]
[1730009052102,12.08894792,172.53,172.52,7.99534513]
[1730009052306,57.6237,172.61,172.52,13.12299305]
[1730009052612,8.02894792,172.57,172.53,13.12299305]
[1730009052796,4.06,172.56,172.54,5.09404513]
[1730009053001,4.06,172.56,172.55,7.99494513]
[1730009053508,12.08894792,172.56,172.55,7.99494513]
[1730009054911,12.08894792,172.56,172.55,5.09404513]
[1730009055212,12.08894792,172.56,172.54,2.9012]
[1730009055404,10.93004792,172.55,172.51,2.9015]
[1730009055611,8.02894792,172.52,172.51,2.9015]
[1730009055816,12.08894792,172.52,172.51,7.99653058]
[1730009059113,12.08894792,172.52,172.51,2.9015]
[1730009059316,12.08894792,172.52,172.51,7.99633751]
[1730009060208,4.06,172.52,172.51,7.99633751]
[1730009061318,2.1143,172.52,172.51,7.99633751]
[1730009061510,0.1687,172.52,172.51,7.99633751]
[1730009062408,8.02894792,172.55,172.54,2.9012]
[1730009062611,12.04894792,172.55,172.54,7.99603751]
[1730009062809,4.02,172.55,172.54,7.99603751]
[1730009063008,4.02,172.55,172.54,2.9012]
[1730009063210,4.02,172.55,172.54,7.99518887]
[1730009067519,12.04894792,172.55,172.54,5.09398887]
[1730009068415,4.02,172.55,172.54,5.0925903]
[1730009068625,12.04894792,172.55,172.54,5.0925903]
[1730009069423,56.38,172.61,172.55,2.901]
[1730009069618,8.02894792,172.58,172.56,5.0925903]
[1730009069921,8.02894792,172.58,172.53,8.02894792]
[1730009070123,8.02894792,172.58,172.56,2.9007]
[1730009072413,56.38,172.61,172.54,8.02894792]
[1730009072616,12.04894792,172.6,172.55,5.09034234]
[1730009072818,12.04894792,172.6,172.54,8.02894792]
[1730009072819,12.04894792,172.6,172.56,5.09034234]
[1730009073116,12.04894792,172.6,172.57,5.09034234]
[1730009073315,12.04894792,172.6,172.58,7.99074234]
[1730009073513,137.97171337,172.74,172.59,8.02894792]
[1730009073743,8.02894792,172.68,172.63,8.02894792]
[1730009073923,8.02894792,172.68,172.65,2.8992]
[1730009073924,4.02,172.67,172.65,2.8992]
[1730009074717,12.04894792,172.67,172.65,2.8992]
[1730009074922,8.02894792,172.66,172.62,2.8998]
[1730009075121,8.02894792,172.64,172.62,2.8998]
[1730009075324,4.02,172.63,172.62,2.8998]
[1730009076023,12.04894792,172.63,172.58,2.4843]
[1730009076225,8.02894792,172.61,172.56,8.02894792]
[1730009076429,8.02894792,172.61,172.57,6.53217689]
[1730009076629,8.02894792,172.61,172.56,8.02894792]
[1730009076925,8.02894792,172.61,172.57,6.53217368]
[1730009077225,8.02894792,172.61,172.59,2.9002]
[1730009082131,8.02894792,172.61,172.56,8.02894792]
[1730009082326,8.02894792,172.59,172.57,4.35129192]
[1730009082524,4.02,172.58,172.57,2.9005]
[1730009084721,4.02,172.58,172.56,2.9008]
[1730009085327,12.04894792,172.58,172.56,2.9008]
[1730009086730,12.04894792,172.58,172.55,2.901]
[1730009091936,12.04894792,172.58,172.53,9.27094792]
[1730009092130,12.04894792,172.58,172.56,2.9008]
[1730009092832,8.02894792,172.57,172.54,2.9011]
[1730009100237,8.02894792,172.55,172.5,2.484]
[1730009100547,8.02894792,172.53,172.51,9.43119319]
[1730009100748,56.38,172.63,172.5,1.2417]
[1730009100950,8.02894792,172.55,172.52,2.9014]
[1730009101149,4.08,172.54,172.52,2.9014]
[1730009107949,8.02894792,172.53,172.46,2.4894]
[1730009108253,8.02894792,172.52,172.47,14.5590588]
[1730009108544,8.02894792,172.52,172.48,6.53011088]
[1730009108856,8.02894792,172.52,172.5,2.9017]
[1730009109750,8.02894792,172.52,172.49,2.902]
[1730009110557,8.02894792,172.52,172.5,2.9018]
[1730009112358,8.02894792,172.51,172.46,2.4894]
[1730009112559,4.08,172.5,172.46,2.4894]
[1730009113353,4.08,172.5,172.49,2.9019]
[1730009115752,4.08,172.5,172.49,10.93084792]
[1730009115953,4.08,172.5,172.49,2.9019]
[1730009143185,4.02,172.51,172.48,8.02894792]
[1730009143389,4.02,172.51,172.5,2.9018]
[1730009146188,8.02894792,172.55,172.54,2.9012]
[1730009146490,12.04894792,172.55,172.54,2.9012]
[1730009159409,12.04894792,172.55,172.42,2.5048]
[1730009159607,8.02894792,172.46,172.43,6.53728058]
[1730009159906,8.02894792,172.46,172.44,6.53728058]
[1730009160103,8.02894792,172.46,172.45,9.43998058]
[1730009161101,8.02894792,172.46,172.45,9.44194363]
[1730009161706,8.02894792,172.46,172.45,7.99059065]
[1730009162399,8.02894792,172.46,172.45,5.08789065]
[1730009162603,8.02894792,172.46,172.44,2.9028]
[1730009162808,4.02,172.47,172.4,1.2924]
[1730009163108,4.02,172.47,172.45,2.9026]
[1730009164410,4.02,172.47,172.4,1.2924]
[1730009164411,2.8800968,172.53,172.41,8.02894792]
[1730009164603,8.02894792,172.48,172.47,2.9023]
[1730009164805,12.04894792,172.48,172.47,2.9023]
[1730009166198,1.2384,172.54,172.45,8.02894792]
[1730009166399,2.1233,172.57,172.45,8.02894792]
[1730009166400,4.02,172.53,172.46,5.08433764]
[1730009166603,12.04894792,172.52,172.47,5.08433764]
[1730009166910,4.02,172.51,172.48,5.08433764]
[1730009167114,4.02,172.51,172.49,5.08433764]
[1730009167409,4.02,172.51,172.45,8.02894792]
[1730009167606,4.02,172.51,172.5,2.9018]
[1730009168205,4.02,172.51,172.48,2.9021]
[1730009168504,4.02,172.51,172.49,5.08436128]
[1730009168708,4.02,172.51,172.5,5.08436128]
[1730009168905,4.02,172.51,172.5,7.98616128]
[1730009169706,8.02894792,172.53,172.5,5.08436128]
[1730009169910,4.02,172.52,172.51,5.08436128]
[1730009171517,4.02,172.52,172.51,7.98606128]
[1730009172911,8.02894792,172.54,172.51,5.08436128]
[1730009173113,4.02,172.53,172.52,7.98586128]
[1730009174018,8.02894792,172.54,172.52,5.08436128]
[1730009174315,8.02894792,172.54,172.53,2.9013]
[1730009174618,12.04894792,172.54,172.53,2.9013]
[1730009176414,12.04894792,172.54,172.53,7.98495473]
[1730009179024,12.04894792,172.54,172.53,2.9013]
[1730009182231,12.04894792,172.54,172.47,2.9023]
[1730009182432,8.02894792,172.53,172.47,8.02894792]
[1730009182927,8.02894792,172.53,172.52,2.9015]
[1730009183132,4.02,172.54,172.52,2.9015]
[1730009183321,8.02894792,172.53,172.52,2.9015]
[1730009186523,8.02894792,172.53,172.48,2.902]
[1730009186828,8.02894792,172.51,172.45,8.02894792]
[1730009187131,4.04,172.5,172.45,8.02894792]
[1730009187818,4.04,172.5,172.49,2.902]
[1730009188023,4.04,172.5,172.49,4.35342061]
[1730009188723,8.02894792,172.52,172.49,1.45142061]
[1730009188926,4.04,172.51,172.5,1.45128707]
[1730009189125,4.04,172.51,172.5,6.53511583]
[1730009189327,4.04,172.51,172.5,5.08382876]
[1730009189528,4.04,172.51,172.5,6.53512872]
[1730009190229,4.04,172.51,172.5,9.43692872]
[1730009190431,4.04,172.51,172.5,6.53512872]
[1730009191334,4.04,172.51,172.5,9.43692872]
[1730009192839,4.04,172.51,172.5,4.35309996]
[1730009193035,4.04,172.51,172.5,9.43692564]
[1730009196636,4.04,172.51,172.5,2.9018]
[1730009196828,4.04,172.51,172.5,9.43692433]
[1730009200437,4.04,172.51,172.5,7.9856735]
[1730009200740,8.02894792,172.53,172.5,1.45133854]
[1730009200942,8.02894792,172.53,172.52,2.9015]
[1730009201242,4.04,172.53,172.52,2.9015]
[1730009201441,4.04,172.53,172.52,9.43670902]
[1730009201643,8.02894792,172.55,172.54,2.9012]
[1730009201834,4.04,172.55,172.54,2.9012]
[1730009207641,12.06894792,172.55,172.54,2.9012]
[1730009211244,4.04,172.55,172.54,2.9012]
[1730009211651,4.04,172.55,172.54,7.98357542]
[1730009213051,4.04,172.55,172.54,9.43458576]
[1730009213350,4.04,172.55,172.54,7.98357542]
[1730009213750,8.02894792,172.58,172.56,2.9008]
[1730009213950,4.02,172.57,172.56,2.9008]
[1730009214551,12.04894792,172.57,172.56,2.9008]
[1730009220069,12.04894792,172.57,172.51,8.02894792]
[1730009220271,8.02894792,172.55,172.52,6.53110952]
[1730009220473,8.02894792,172.55,172.53,6.53110952]
[1730009220674,8.02894792,172.55,172.54,5.08009402]
[1730009220872,8.02894792,172.55,172.51,8.02894792]
[1730009221173,8.02894792,172.55,172.54,2.9012]
[1730009221369,8.02894792,172.55,172.54,7.98128406]
[1730009221570,8.02894792,172.55,172.54,2.9012]
[1730009224674,12.04894792,172.57,172.51,8.02894792]
[1730009224875,12.04894792,172.57,172.55,2.901]
[1730009229880,60.5737,172.63,172.58,2.9004]
[1730009230083,8.02894792,172.61,172.58,2.9004]
[1730009232075,8.02894792,172.61,172.47,1.1713]
[1730009232076,8.02894792,172.61,172.6,2.9002]
[1730009232579,12.04894792,172.61,172.6,2.9002]
[1730009232783,64.40894792,172.63,172.61,2.9]
[1730009233079,4.02,172.62,172.61,2.9]
[1730009245390,56.38,172.63,172.62,2.8998]
[1730009245583,60.4,172.63,172.62,2.8998]
[1730009249993,68.42894792,172.63,172.51,2.4605]
[1730009250189,8.02894792,172.6,172.59,2.9002]
[1730009255193,8.02894792,172.62,172.59,2.9002]
[1730009259192,8.02894792,172.6,172.53,1.2312]
[1730009259397,4.02,172.59,172.56,2.9008]
[1730009259695,4.02,172.59,172.53,9.26014792]
[1730009259895,4.02,172.59,172.57,2.9006]
[1730009267907,8.02894792,172.58,172.55,2.9009]
[1730009268905,8.02894792,172.58,172.56,2.9008]
[1730009271094,2.9007,172.57,172.54,2.9011]
[1730009271307,10.92964792,172.57,172.54,2.9011]
[1730009274201,8.02894792,172.57,172.54,2.9011]
[1730009275810,10.92964792,172.57,172.53,4.1325]
[1730009276212,8.02894792,172.55,172.53,1.2312]
[1730009276411,4.02,172.54,172.51,9.28954792]
[1730009276610,4.02,172.54,172.52,9.43624157]
[1730009276912,4.02,172.54,172.53,6.53484157]
[1730009277112,4.02,172.54,172.53,1.45107569]
[1730009277416,4.02,172.54,172.53,6.53484233]
[1730009278316,4.02,172.54,172.53,9.43614233]
[1730009280719,4.02,172.54,172.53,2.9013]
[1730009281114,4.02,172.54,172.53,9.43616438]
[1730009281409,4.02,172.54,172.53,1.45108207]
[1730009281410,12.04894792,172.54,172.53,1.45108207]
[1730009281614,12.04894792,172.54,172.51,2.9015]
[1730009283414,4.02,172.54,172.48,8.02894792]
[1730009283630,4.02,172.54,172.5,8.02894792]
[1730009283816,4.02,172.54,172.51,5.08239028]
[1730009284023,4.02,172.54,172.52,9.43495589]
[1730009284222,4.02,172.54,172.52,2.9014]
[1730009285224,12.04894792,172.54,172.52,2.9014]
[1730009291728,8.02894792,172.53,172.52,2.9014]
[1730009292927,12.04894792,172.54,172.52,2.9014]
[1730009294637,8.02894792,172.53,172.52,2.9014]
[1730009297033,8.02894792,172.53,172.49,2.9018]
[1730009297034,10.93034792,172.53,172.49,2.9018]
[1730009297341,8.02894792,172.51,172.47,1.234]
[1730009297639,4.02,172.5,172.48,6.52837111]
[1730009297838,4.02,172.5,172.47,1.234]
[1730009298038,4.02,172.5,172.48,6.5284688]
[1730009298238,4.02,172.5,172.49,2.902]
[1730009301243,12.04894792,172.5,172.49,2.902]
[1730009307145,12.04894792,172.5,172.47,1.234]
[1730009307444,12.04894792,172.5,172.48,5.0738886]
[1730009307445,4.02,172.5,172.48,5.0738886]
[1730009307639,8.02894792,172.48,172.44,9.25324792]
[1730009307838,8.02894792,172.48,172.46,2.9024]
[1730009309549,8.02894792,172.47,172.44,1.2243]
[1730009309846,8.02894792,172.47,172.42,8.02894792]
[1730009309847,4.02,172.46,172.45,2.9026]
[1730009312053,4.02,172.46,172.41,2.9032]
[1730009312237,8.02894792,172.43,172.38,1.1748]
[1730009312436,4.02,172.42,172.39,5.07236997]
[1730009312638,4.02,172.42,172.4,9.42762603]
[1730009312941,4.02,172.42,172.4,2.9034]
[1730009313742,4.02,172.42,172.39,1.45191663]
[1730009313943,4.02,172.42,172.39,2.9037]
[1730009314141,8.02894792,172.4,172.39,2.9037]
[1730009316147,8.02894792,172.4,172.37,5.06610436]
[1730009316345,8.02894792,172.4,172.32,2.3956]
[1730009316346,8.02894792,172.39,172.36,2.9042]
[1730009316649,4.02,172.38,172.36,2.9042]
[1730009317242,4.02,172.38,172.35,2.9042]
[1730009317451,8.02894792,172.37,172.35,2.9042]
[1730009321449,4.02,172.38,172.35,2.9042]
[1730009321450,8.02894792,172.36,172.35,2.9042]
[1730009322147,8.02894792,172.37,172.36,2.904]
[1730009322352,12.04894792,172.37,172.36,2.904]
[1730009324553,207.4403,172.46,172.32,10.42454792]
[1730009324846,207.4403,172.46,172.39,2.9036]
[1730009324847,2.903,172.43,172.39,2.9036]
[1730009325047,4.02,172.42,172.39,2.9036]
[1730009328848,207.4403,172.46,172.36,8.02894792]
[1730009329049,4.02,172.45,172.42,2.9032]
[1730009329251,8.02894792,172.43,172.42,2.9032]
[1730009333650,8.02894792,172.43,172.37,8.02894792]
[1730009333850,8.02894792,172.4,172.39,2.9036]
[1730009334155,12.04894792,172.4,172.39,2.9036]
[1730009338961,12.04894792,172.4,172.37,2.904]
[1730009339157,8.02894792,172.38,172.32,10.42454792]
[1730009339358,8.02894792,172.36,172.33,1.45208007]
[1730009339665,4.02,172.35,172.32,10.42454792]
[1730009340062,4.02,172.35,172.34,2.9045]
[1730009345658,8.02894792,172.38,172.32,10.42454792]
[1730009345854,4.02,172.37,172.35,2.9042]
[1730009350469,12.04894792,172.37,172.35,2.9042]
[1730009355568,12.04894792,172.37,172.36,2.9042]
[1730009356470,12.04894792,172.37,172.35,2.9043]
[1730009359068,8.02894792,172.37,172.32,1.1943]
[1730009359268,4.02,172.36,172.33,8.02894792]
[1730009359469,2.9033,172.42,172.33,9.20344792]
[1730009359676,8.02894792,172.39,172.33,9.20344792]
[1730009361276,8.02894792,172.39,172.37,2.9039]
[1730009362171,8.02894792,172.39,172.38,2.9039]
[1730009362680,2.9031,172.43,172.4,2.9035]
[1730009362874,8.02894792,172.41,172.4,2.9035]
[1730009365781,4.02,172.42,172.4,2.9035]
[1730009365980,8.02894792,172.41,172.4,2.9035]
[1730009367077,8.02894792,172.41,172.32,1.1943]
[1730009367382,4.02,172.42,172.33,5.06442626]
[1730009367383,8.02894792,172.34,172.33,5.06442626]
[1730009367880,8.02894792,172.34,172.33,7.96912626]
[1730009372988,8.02894792,172.34,172.33,2.9047]
[1730009373583,8.02894792,172.34,172.33,7.97842006]
[1730009374279,8.02894792,172.34,172.33,5.07372006]
[1730009374485,8.02894792,172.34,172.31,2.9049]
[1730009374784,8.02894792,172.32,172.31,2.9049]
[1730009374989,8.02894792,172.32,172.31,7.98087256]
[1730009377890,4.02,172.35,172.31,5.07597256]
[1730009378097,4.02,172.35,172.32,7.98067256]
[1730009378297,4.02,172.35,172.33,5.08281946]
[1730009378595,4.02,172.35,172.32,2.9047]
[1730009378796,4.02,172.35,172.33,5.08281541]
[1730009378991,4.02,172.35,172.31,2.905]
[1730009378992,2.9044,172.35,172.31,2.905]
[1730009379196,8.02894792,172.34,172.32,5.08306793]
[1730009379394,8.02894792,172.34,172.33,5.08306793]
[1730009379796,8.02894792,172.34,172.26,1.2698]
[1730009379797,8.02894792,172.34,172.26,9.29874792]
[1730009380092,8.02894792,172.31,172.28,2.9055]
[1730009380397,8.02894792,172.31,172.29,5.08431058]
[1730009380398,12.04894792,172.31,172.29,5.08431058]
[1730009380594,12.04894792,172.31,172.3,5.08431058]
[1730009381192,4.02,172.31,172.3,5.08431058]
[1730009381389,4.02,172.31,172.3,7.98951058]
[1730009382890,12.04894792,172.31,172.3,5.08431058]
[1730009388395,12.04894792,172.31,172.29,2.9053]
[1730009393707,8.02894792,172.3,172.29,2.9053]
[1730009397505,4.14,172.31,172.27,8.02894792]
[1730009397706,4.14,172.31,172.28,5.0742653]
[1730009397907,4.14,172.31,172.29,5.0742653]
[1730009398108,4.14,172.31,172.3,2.9052]
[1730009400215,8.02894792,172.32,172.28,8.02894792]
[1730009400521,12.16894792,172.32,172.31,2.905]
[1730009400720,2.9042,172.36,172.31,8.02894792]
[1730009400721,4.14,172.34,172.31,8.02894792]
[1730009401225,4.14,172.34,172.3,8.02894792]
[1730009401412,4.14,172.34,172.31,5.07505564]
[1730009401617,4.14,172.34,172.32,5.07505564]
[1730009401818,4.14,172.34,172.33,2.9047]
[1730009407313,2.904,172.38,172.33,2.9047]
[1730009407514,8.02894792,172.36,172.31,8.02894792]
[1730009407720,12.16894792,172.36,172.31,9.20164792]
[1730009407919,12.16894792,172.36,172.35,2.9042]
[1730009408518,12.16894792,172.36,172.31,9.20164792]
[1730009408519,4.14,172.37,172.36,2.9042]
[1730009412722,12.16894792,172.38,172.36,2.9042]
[1730009412924,4.14,172.38,172.36,2.9042]
[1730009413125,12.16894792,172.38,172.36,2.9042]
[1730009419129,12.16894792,172.38,172.32,10.49294792]
[1730009419436,12.16894792,172.38,172.33,5.07891759]
[1730009419732,12.16894792,172.38,172.34,5.07891759]
[1730009419934,12.16894792,172.38,172.36,2.9041]
[1730009421031,6.08164792,172.38,172.36,2.9041]
[1730009421331,149.841,172.46,172.37,17.24694028]
[1730009421533,149.841,172.46,172.42,8.02894792]
[1730009422127,149.841,172.46,172.45,2.9027]
[1730009425035,145.853,172.46,172.45,10.93164792]
[1730009426138,145.853,172.46,172.45,2.9027]
[1730009427839,145.853,172.46,172.39,2.5733]
[1730009428039,145.853,172.46,172.44,2.9028]
[1730009428943,145.853,172.46,172.4,8.02894792]
[1730009429242,145.853,172.46,172.45,2.9027]
[1730009431738,145.853,172.46,172.44,2.9028]
[1730009432136,8.02894792,172.45,172.39,8.02894792]
[1730009432336,8.02894792,172.44,172.39,8.02894792]
[1730009432541,12.24894792,172.44,172.39,8.02894792]
[1730009433333,12.24894792,172.44,172.42,2.9031]
[1730009435643,12.24894792,172.44,172.39,8.02894792]
[1730009435849,8.02894792,172.43,172.37,8.02894792]
[1730009437341,8.02894792,172.43,172.41,2.9033]
[1730009437546,8.02894792,172.43,172.35,5.06245794]
[1730009437840,8.02894792,172.38,172.31,8.02894792]
[1730009438048,4.22,172.37,172.33,2.9046]
[1730009442757,4.22,172.37,172.31,8.02894792]
[1730009444261,4.22,172.37,172.34,2.9045]
[1730009448357,8.02894792,172.36,172.34,2.9045]
[1730009450664,15.15304792,172.37,172.34,2.9045]
[1730009450851,12.24894792,172.37,172.34,2.9045]
[1730009458767,12.24894792,172.37,172.31,8.02894792]
[1730009458966,8.02894792,172.36,172.31,8.02894792]
[1730009459664,8.02894792,172.36,172.34,2.9044]
[1730009460570,4.2,172.35,172.34,2.9044]
[1730009468578,4.2,172.36,172.32,8.02894792]
[1730009468780,4.2,172.36,172.33,5.07291571]
[1730009469078,4.2,172.36,172.32,8.02894792]
[1730009469277,8.02894792,172.34,172.33,5.07291571]
[1730009469581,8.02894792,172.34,172.28,5.07345935]
[1730009469776,8.02894792,172.33,172.29,5.07345935]
[1730009469983,4.2,172.32,172.3,7.97845935]
[1730009470181,4.2,172.32,172.27,11.83014792]
[1730009470480,4.2,172.32,172.29,2.9053]
[1730009470686,4.2,172.32,172.27,9.28614792]
[1730009470982,4.2,172.32,172.28,5.07355231]
[1730009471178,4.2,172.32,172.29,5.07355231]
[1730009471380,8.02894792,172.31,172.26,8.02894792]
[1730009471582,8.02894792,172.31,172.27,5.07315144]
[1730009471776,8.02894792,172.31,172.26,8.02894792]
[1730009471777,8.02894792,172.31,172.29,2.9052]
[1730009472883,8.02894792,172.31,172.26,8.02894792]
[1730009473184,8.02894792,172.31,172.3,2.9052]
[1730009475884,8.02894792,172.31,172.22,1.2547]
[1730009476090,8.02894792,172.31,172.29,2.9053]
[1730009483389,8.02894792,172.31,172.3,2.9052]
[1730009484096,8.02894792,172.31,172.27,2.9056]
[1730009484097,2.9052,172.3,172.27,2.9056]
[1730009484284,8.02894792,172.3,172.24,8.02894792]
[1730009484493,8.02894792,172.3,172.25,5.06799046]
[1730009484689,56.44,172.44,172.26,5.06799046]
[1730009484886,4.2,172.38,172.28,8.02894792]
[1730009485088,8.02894792,172.33,172.28,8.02894792]
[1730009485393,4.2,172.32,172.28,8.02894792]
[1730009486095,4.2,172.32,172.31,2.905]
[1730009488691,15.13384792,172.32,172.29,2.9053]
[1730009488895,8.02894792,172.31,172.29,2.9053]
[1730009489304,10.93394792,172.31,172.26,2.9057]
[1730009489495,10.93394792,172.31,172.25,9.22194792]
[1730009489697,10.93394792,172.31,172.26,5.06637281]
[1730009489898,8.02894792,172.28,172.25,1.193]
[1730009490200,12.16894792,172.28,172.25,1.193]
[1730009491002,12.16894792,172.28,172.27,2.9057]
[1730009491699,12.16894792,172.28,172.23,8.02894792]
[1730009491906,12.16894792,172.28,172.25,2.9059]
[1730009493503,4.14,172.28,172.23,8.02894792]
[1730009493805,4.14,172.28,172.27,2.9057]
[1730009494799,0.9979,172.37,172.27,8.02894792]
[1730009494800,4.14,172.29,172.27,8.02894792]
[1730009495005,4.14,172.31,172.27,8.02894792]
[1730009496009,4.14,172.31,172.28,5.06845606]
[1730009496204,4.14,172.31,172.27,8.02894792]
[1730009496403,4.14,172.31,172.3,2.9051]
[1730009504112,4.14,172.31,172.28,8.02894792]
[1730009504410,12.16894792,172.31,172.29,7.98788054]
[1730009504615,12.16894792,172.31,172.29,2.9053]
[1730009506318,12.16894792,172.31,172.26,8.02894792]
[1730009506515,8.02894792,172.3,172.28,2.9055]
[1730009506716,8.02894792,172.3,172.29,5.08572992]
[1730009507219,10.93424792,172.3,172.23,8.02894792]
[1730009507411,8.02894792,172.28,172.24,5.08597999]
[1730009507719,4.14,172.27,172.25,5.08597999]
[1730009507920,4.14,172.27,172.26,5.08597999]
[1730009508818,4.14,172.27,172.26,7.99187999]
[1730009513122,4.14,172.27,172.26,2.9059]
[1730009513317,4.14,172.27,172.26,7.99138666]
[1730009517515,4.14,172.3,172.29,2.9054]
[1730009517719,4.14,172.32,172.29,13.11443458]
[1730009517910,4.14,172.32,172.3,7.99058666]
[1730009518116,4.14,172.32,172.3,2.9051]
[1730009518312,4.14,172.32,172.31,5.08565974]
[1730009520319,4.14,172.32,172.31,7.99065974]
[1730009522326,12.16894792,172.32,172.31,7.99065974]
[1730009522828,12.16894792,172.32,172.31,2.905]
[1730009523020,12.16894792,172.32,172.31,7.99174799]
[1730009523425,12.16894792,172.32,172.31,7.99204395]
[1730009526025,12.16894792,172.32,172.31,2.905]
[1730009526328,12.16894792,172.32,172.27,8.02894792]
[1730009526628,12.16894792,172.32,172.28,5.0881965]
[1730009526922,8.02894792,172.31,172.29,7.9933965]
[1730009527122,2.9052,172.3,172.22,1.2547]
[1730009527328,10.93414792,172.3,172.23,5.08857081]
[1730009527530,10.93414792,172.3,172.24,13.11751873]
[1730009527733,10.93414792,172.3,172.25,5.08857081]
[1730009527926,10.93414792,172.3,172.26,7.99427081]
[1730009528123,10.93414792,172.3,172.27,5.08857081]
[1730009528328,10.93414792,172.3,172.28,5.08857081]
[1730009528530,10.93414792,172.3,172.29,5.08857081]
[1730009529028,10.93414792,172.3,172.26,2.9057]
[1730009529227,10.93414792,172.3,172.27,5.0891665]
[1730009529433,10.93414792,172.3,172.28,5.0891665]
[1730009529633,10.93414792,172.3,172.24,8.02894792]
[1730009529835,10.93414792,172.3,172.25,5.08915173]
[1730009530030,10.93414792,172.3,172.26,5.08915173]
[1730009530338,10.93414792,172.3,172.26,2.9058]
[1730009530530,10.93414792,172.3,172.27,5.08905179]
[1730009530834,10.93414792,172.3,172.28,5.08905179]
[1730009531029,10.93414792,172.3,172.26,2.9058]
[1730009531030,2.9054,172.29,172.26,2.9058]
[1730009531224,4.14,172.28,172.27,5.08940474]
[1730009534227,12.16894792,172.28,172.27,5.08940474]
[1730009537640,12.16894792,172.28,172.25,2.9059]
[1730009537934,12.16894792,172.28,172.26,5.09405157]
[1730009538135,12.16894792,172.28,172.27,5.09405157]
[1730009540532,4.14,172.28,172.27,5.09405157]
[1730009540734,12.16894792,172.28,172.27,5.09405157]
[1730009541540,12.16894792,172.28,172.27,5.09404241]
[1730009545147,12.16894792,172.28,172.25,2.9059]
[1730009545339,8.02894792,172.27,172.26,5.09326964]
[1730009546243,8.02894792,172.27,172.21,2.9067]
[1730009546439,8.02894792,172.23,172.22,5.0932055]
[1730009546746,12.16894792,172.23,172.22,5.0932055]